bitfinex/quotes_ETHUSD_20250223
["timestamp","ask_amount","ask_price","bid_price","bid_amount"]
[1740347258299,4.35686,2807.6,2807.3,0.11149128]
[1740347258631,7.9187,2807.6,2807.2,3.0]
[1740347258812,4.35686,2807.6,2807.2,3.0]
[1740347259112,3.5619,2807.5,2807.2,3.0]
[1740347259318,3.5619,2807.5,2807.1,3.56236]
[1740347259695,4.35686,2807.6,2807.1,3.56236]
[1740347259902,4.35686,2807.6,2807.2,0.11149128]
[1740347259903,7.91873,2807.6,2807.2,0.11149128]
[1740347260237,3.5619,2807.5,2807.2,0.11149128]
[1740347260598,4.35686,2807.6,2807.2,0.11149128]
[1740347261116,3.56202,2807.4,2806.9,3.56259]
[1740347261298,3.56202,2807.4,2806.9,3.56257]
[1740347262449,3.56202,2807.4,2807.0,0.11149562]
[1740347262856,3.56216,2807.3,2807.0,0.11149562]
[1740347263454,4.35737,2807.2,2807.0,0.11149562]
[1740347263607,4.35737,2807.2,2806.7,3.56288]
[1740347265258,4.35737,2807.2,2806.6,4.33472]
[1740347265459,3.56243,2807.1,2806.6,4.33472]
[1740347265625,0.73137491,2806.9,2806.7,3.56283]
[1740347266157,3.56243,2807.1,2806.7,3.56283]
[1740347266326,4.35743,2807.2,2806.7,3.56283]
[1740347267043,0.73044731,2807.0,2806.7,3.67433452]
[1740347268268,4.29299731,2807.0,2806.7,0.11150452]
[1740347268555,3.56268,2806.9,2806.5,3.56314]
[1740347268960,3.56278,2806.8,2806.4,1.3218]
[1740347269111,4.31568,2806.8,2806.4,4.88506]
[1740347269312,3.56292,2806.7,2806.3,3.56339]
[1740347270384,3.56308,2806.6,2806.2,0.8249]
[1740347270584,3.56308,2806.6,2806.2,4.38843]
[1740347271122,0.7529,2806.8,2806.2,4.38843]
[1740347271352,3.56291,2806.7,2806.2,4.38843]
[1740347272574,3.56291,2806.7,2806.3,3.5634]
[1740347273276,6.34285632,2807.1,2806.2,0.8249]
[1740347273277,0.7529,2807.4,2807.1,3.56239]
[1740347273531,0.71352361,2807.6,2807.2,3.56214]
[1740347274389,0.71352361,2807.6,2807.3,3.56213]
[1740347274758,0.7529,2807.7,2807.3,3.56213]
[1740347275603,1.47037694,2807.7,2807.3,3.56213]
[1740347275907,1.99877363,2807.7,2807.3,3.56206]
[1740347276999,5.56040363,2807.7,2807.1,7.12458]
[1740347277169,5.56040363,2807.7,2807.2,3.56223]
[1740347277669,3.82353416,2807.6,2807.1,3.56228]
[1740347278602,3.82353416,2807.6,2807.0,0.8249]
[1740347278808,3.56195,2807.5,2807.0,3.56251]
[1740347280311,4.43096494,2807.6,2807.0,3.56251]
[1740347280613,3.56203,2807.4,2807.0,3.56251]
[1740347280756,0.7868,2807.3,2807.0,3.56251]
[1740347281213,0.7868,2807.3,2806.9,0.11149728]
[1740347281392,4.34897,2807.3,2806.9,0.11149728]
[1740347281593,7.9112,2807.3,2806.9,0.11149728]
[1740347281762,7.9112,2807.3,2806.8,3.56266]
[1740347281964,4.34897,2807.3,2806.6,4.31514]
[1740347282164,3.56228,2807.2,2806.7,3.56289]
[1740347282608,4.34895,2807.3,2806.8,3.56268]
[1740347282916,4.34895,2807.3,2806.8,3.56267]
[1740347283213,0.7868,2807.3,2807.0,3.5625]
[1740347283533,1.04857416,2807.6,2807.0,4.31462]
[1740347283669,1.04857416,2807.6,2807.2,3.56218]
[1740347283670,0.26177416,2807.6,2807.2,3.56218]
[1740347283868,0.26177416,2807.6,2807.2,7.12437]
[1740347284073,0.26177416,2807.6,2807.2,3.56218]
[1740347284422,0.98251737,2807.6,2807.3,3.56212]
[1740347285221,0.98251737,2807.6,2807.1,3.56239]
[1740347285380,0.98251737,2807.6,2807.2,3.56218]
[1740347289614,0.98251737,2807.6,2807.1,3.56231]
[1740347291024,0.98251737,2807.6,2807.3,3.56204]
[1740347291408,0.98251737,2807.6,2807.2,3.56226]
[1740347291776,0.98251737,2807.6,2807.1,3.5623]
[1740347291988,0.98251737,2807.6,2807.3,3.56213]
[1740347292388,0.98251737,2807.6,2807.1,7.12457]
[1740347293130,0.98251737,2807.6,2807.2,3.56222]
[1740347294326,0.98251737,2807.6,2807.3,3.56213]
[1740347294656,0.98251737,2807.6,2807.3,7.1242]
[1740347295039,0.98251737,2807.6,2807.3,3.56207]
[1740347295225,0.98251737,2807.6,2807.3,7.12415]
[1740347295426,0.98251737,2807.6,2807.3,3.56207]
[1740347296424,0.98251737,2807.6,2807.3,7.12415]
[1740347296657,0.98251737,2807.6,2807.3,3.56207]
[1740347296963,0.98251737,2807.6,2807.4,3.562]
[1740347297318,0.98251737,2807.6,2807.3,3.56212]
[1740347302863,0.98251737,2807.6,2807.4,3.56196]
[1740347313238,0.72074321,2807.6,2807.4,3.56196]
[1740347313434,0.7569,2807.9,2807.7,3.56152]
[1740347314934,0.27185351,2807.8,2807.7,3.56152]
[1740347316750,0.27185351,2807.8,2807.5,3.56181]
[1740347316905,0.7569,2807.9,2807.6,3.56174]
[1740347318354,0.7569,2807.9,2807.5,3.56181]
[1740347318523,0.7569,2807.9,2807.7,3.56156]
[1740347319396,1.02682947,2807.9,2807.7,3.56156]
[1740347320258,1.02682947,2807.9,2807.6,3.56174]
[1740347320462,1.02682947,2807.9,2807.5,3.56181]
[1740347320656,1.02682947,2807.9,2807.6,3.56176]
[1740347320856,1.02682947,2807.9,2807.7,3.56162]
[1740347323400,1.02682947,2807.9,2807.7,7.12318]
[1740347325589,1.02682947,2807.9,2807.7,3.56156]
[1740347325893,1.02682947,2807.9,2807.8,3.5615]
[1740347327861,2.06903307,2808.0,2807.9,3.56138]
[1740347328170,1.34808609,2808.0,2807.9,3.56138]
[1740347331694,0.72919638,2808.1,2808.0,3.56125]
[1740347331870,0.7641,2808.3,2808.2,3.56099]
[1740347332469,0.7641,2808.3,2807.9,3.5613]
[1740347332700,1.46514974,2808.3,2807.9,3.5613]
[1740347333007,1.46514974,2808.3,2808.1,3.56108]
[1740347333208,1.46514974,2808.3,2808.2,3.56099]
[1740347333406,1.34808609,2808.4,2808.3,3.56087]
[1740347334074,2.05412957,2808.4,2808.3,3.56087]
[1740347335212,0.70604348,2808.4,2808.3,3.56087]
[1740347336220,6.59808609,2808.6,2808.4,3.56063]
[1740347336508,6.59808609,2808.6,2808.5,3.56061]
[1740347337207,7.31854008,2808.6,2808.5,3.56061]
[1740347339010,7.31854008,2808.6,2808.3,3.56081]
[1740347339309,2.06854008,2808.6,2808.3,3.56081]
[1740347339567,2.06854008,2808.6,2808.4,3.56073]
[1740347340616,2.06854008,2808.6,2808.2,3.56089]
[1740347340832,2.06854008,2808.6,2808.3,3.56085]
[1740347345665,2.06854008,2808.6,2808.2,3.56098]
[1740347346011,2.06854008,2808.6,2808.2,3.56094]
[1740347347442,2.06854008,2808.6,2808.2,7.12188]
[1740347347653,2.06854008,2808.6,2808.2,3.56094]
[1740347347825,0.72045399,2808.6,2808.4,4.36364]
[1740347348007,3.81214,2808.9,2808.5,3.56061]
[1740347348443,1.34808609,2808.8,2808.5,3.56061]
[1740347348651,0.69629101,2808.8,2808.6,3.56043]
[1740347349710,1e-05,2808.9,2808.7,3.56026]
[1740347349910,1e-05,2808.9,2808.6,3.56046]
[1740347350347,0.71160833,2808.9,2808.6,3.56046]
[1740347352155,0.71160833,2808.9,2808.5,3.56054]
[1740347352356,0.71160833,2808.9,2808.7,3.56034]
[1740347353351,0.71160833,2808.9,2808.5,3.996884]
[1740347353528,0.71160833,2808.9,2808.7,3.56036]
[1740347360362,0.71160833,2808.9,2808.7,7.12067]
[1740347360656,1e-05,2808.9,2808.8,3.56023]
[1740347360857,1e-05,2808.9,2808.8,4.272284]
[1740347363473,1e-05,2808.9,2808.8,5.041584]
[1740347364063,1e-05,2808.9,2808.8,5.15300544]
[1740347364898,1e-05,2808.9,2808.8,5.70300544]
[1740347365398,1e-05,2808.9,2808.8,7.05109153]
[1740347365544,1e-05,2808.9,2808.8,8.39917762]
[1740347365902,1e-05,2808.9,2808.8,16.78917762]
[1740347366278,1e-05,2808.9,2808.8,15.44109153]
[1740347366743,1e-05,2808.9,2808.8,15.32967009]
[1740347367051,1e-05,2808.9,2808.8,15.44106732]
[1740347378018,1e-05,2808.9,2808.8,16.78915341]
[1740347378367,0.0646698,2809.8,2808.8,12.55962341]
[1740347378572,0.0646698,2809.8,2809.7,4.33839]
[1740347378774,0.0646698,2809.8,2809.7,9.72839]
[1740347379375,0.0646698,2809.8,2809.7,10.27839]
[1740347379578,0.0646698,2809.8,2809.7,9.49909]
[1740347383632,0.0646698,2809.8,2809.7,4.10909]
[1740347383927,0.0646698,2809.8,2809.7,5.08865761]
[1740347385530,0.0646698,2809.8,2809.7,5.86795761]
[1740347388428,0.0646698,2809.8,2809.7,5.97933642]
[1740347390799,0.0646698,2809.8,2809.7,15.71742251]
[1740347391426,0.0646698,2809.8,2809.7,14.36933642]
[1740347392531,0.0646698,2809.8,2809.7,15.71742251]
[1740347392737,0.0646698,2809.8,2809.7,14.36933642]
[1740347393531,0.0646698,2809.8,2809.7,15.71742251]
[1740347408708,9.8e-06,2809.8,2809.7,15.71742251]
[1740347409733,9.8e-06,2809.8,2809.7,24.72741684]
[1740347410333,0.27335313,2811.9,2810.8,0.2817]
[1740347410569,1.08725313,2811.9,2811.8,0.55]
[1740347410776,2.43533922,2811.9,2811.8,0.55]
[1740347410982,0.8139,2811.8,2811.4,3.0]
[1740347411461,0.8139,2811.8,2811.5,0.55]
[1740347411857,1.34808609,2811.7,2811.5,0.55]
[1740347412976,3.55672,2811.6,2811.1,3.0]
[1740347413135,1.34808609,2811.3,2810.8,5.39]
[1740347413334,0.8139,2811.2,2810.8,8.9477]
[1740347413665,0.8139,2811.2,2811.1,3.55732]
[1740347413866,0.8139,2811.2,2810.9,10.66506]
[1740347414081,0.8139,2811.2,2810.9,7.10749]
[1740347414250,0.8139,2811.2,2811.1,3.55732]
[1740347414598,0.8139,2811.2,2811.0,3.55744]
[1740347414893,0.8139,2811.2,2811.0,7.11483]
[1740347415091,0.8139,2811.2,2811.0,3.55738]
[1740347415264,0.8139,2811.2,2810.9,3.55]
[1740347415459,0.8139,2811.2,2811.0,3.55733]
[1740347415666,3.55662,2811.7,2811.2,0.55]
[1740347415667,0.7535,2811.6,2811.2,0.55]
[1740347415867,0.56582061,2811.5,2811.2,4.10713]
[1740347416398,1.49141086,2812.0,2811.4,0.55]
[1740347416630,0.7934,2812.0,2811.7,0.55]
[1740347416908,0.8143,2812.2,2812.1,3.55606]
[1740347417111,0.8143,2812.2,2812.1,4.10606]
[1740347417291,0.02,2812.2,2812.1,4.10606]
[1740347417492,0.02,2812.2,2812.1,7.10606]
[1740347418074,0.02,2812.2,2812.1,14.41877875]
[1740347418304,1e-05,2812.2,2812.1,15.20467875]
[1740347418513,1e-05,2812.2,2812.1,13.85659266]
[1740347419007,1e-05,2812.2,2812.1,13.96786358]
[1740347420783,1e-05,2812.2,2812.1,13.85659266]
[1740347426147,1e-05,2812.2,2812.1,13.96785456]
[1740347428268,1e-05,2812.2,2812.1,22.77785456]
[1740347432557,1e-05,2812.2,2812.1,21.44195456]
[1740347433279,1e-05,2812.2,2812.1,21.99195456]
[1740347434239,1e-05,2812.2,2812.1,13.18195456]
[1740347437975,1e-05,2812.2,2812.1,13.07069266]
[1740347438384,1e-05,2812.2,2812.1,13.84689266]
[1740347440579,1e-05,2812.2,2812.1,13.95816313]
[1740347441154,1e-05,2812.2,2812.1,13.18196313]
[1740347441353,1e-05,2812.2,2812.1,12.63196313]
[1740347441678,1e-05,2812.2,2812.1,13.18196313]
[1740347453197,1e-05,2812.2,2812.1,9.05127047]
[1740347453511,1e-05,2812.2,2812.1,12.60733047]
[1740347454023,1e-05,2812.2,2812.1,9.05127047]
[1740347454498,1e-05,2812.2,2812.1,12.60733047]
[1740347456692,1e-05,2812.2,2812.1,9.05127047]
[1740347456915,1e-05,2812.2,2812.1,12.60733047]
[1740347457929,1e-05,2812.2,2812.1,7.21733047]
[1740347458435,1e-05,2812.2,2812.1,3.66127047]
[1740347460029,1e-05,2812.2,2812.1,7.21733047]
[1740347463253,0.81471,2812.2,2812.1,3.66127047]
[1740347463826,0.81471,2812.2,2812.1,0.66127047]
[1740347466041,4.37064,2812.2,2812.1,0.66127047]
[1740347466426,0.81471,2812.2,2812.1,0.66127047]
[1740347468131,0.81471,2812.2,2812.1,0.55]
[1740347471854,4.37064,2812.2,2812.1,0.55]
[1740347472351,3.55625,2812.0,2811.5,3.5568]
[1740347472538,0.7688,2811.8,2811.4,8.94688]
[1740347472742,0.7688,2812.1,2811.5,3.0]
[1740347472953,0.7688,2812.1,2811.7,4.10644]
[1740347473155,0.7688,2812.1,2811.9,0.55]
[1740347474056,1e-05,2812.2,2812.1,4.10606]
[1740347474234,1e-05,2812.2,2812.1,0.55]
[1740347475065,1e-05,2812.2,2812.1,4.10606]
[1740347475277,1e-05,2812.2,2812.1,0.55]
[1740347480238,1e-05,2812.2,2811.9,0.55]
[1740347480539,1e-05,2812.2,2811.7,3.7808]
[1740347480540,1e-05,2812.2,2812.1,0.55]
[1740347481369,1e-05,2812.2,2812.1,4.10606]
[1740347482037,1e-05,2812.2,2812.1,4.21735848]
[1740347483678,1e-05,2812.2,2812.1,0.66129848]
[1740347502518,4.33634,2812.2,2812.1,0.11129848]
[1740347502724,4.84089854,2812.2,2812.1,0.11129848]
[1740347503865,4.84089854,2812.2,2811.8,0.55]
[1740347504034,4.33634,2812.2,2811.8,0.55]
[1740347505440,3.5561,2812.1,2811.9,0.11130872]
[1740347506472,3.5561,2812.1,2812.0,0.11130872]
[1740347506641,5.67994307,2812.1,2812.0,0.11130872]
[1740347508029,3.55628,2812.0,2811.5,4.10681]
[1740347508265,3.55628,2812.0,2811.5,5.39349666]
[1740347508773,0.71958794,2811.8,2811.5,5.39349666]
[1740347509081,0.71958794,2811.8,2811.7,4.86796]
[1740347509239,1e-05,2812.2,2811.9,3.5563]
[1740347509674,0.71945546,2812.2,2811.9,3.5563]
[1740347510159,0.71945546,2812.2,2811.9,3.55625]
[1740347511577,2.06289853,2812.2,2811.8,0.55]
[1740347511776,5.61890853,2812.2,2811.8,4.10641]
[1740347511935,2.06289853,2812.2,2811.8,4.10641]
[1740347512581,2.06289853,2812.2,2811.9,0.11130661]
[1740347513603,5.61882853,2812.2,2811.9,0.11130661]
[1740347513898,2.06289853,2812.2,2811.9,0.11130661]
[1740347514555,2.06289853,2812.2,2811.8,4.10638]
[1740347514897,2.06289853,2812.2,2811.9,3.55631]
[1740347515299,0.71945546,2812.2,2811.9,3.55631]
[1740347517569,0.71945546,2812.2,2811.8,4.10638]
[1740347517766,0.71945546,2812.2,2811.9,3.5563]
[1740347519396,4.27538546,2812.2,2811.8,4.10642]
[1740347519757,0.71945546,2812.2,2811.9,3.5563]
[1740347520572,0.71945546,2812.2,2811.8,0.55]
[1740347520755,0.71945546,2812.2,2811.8,4.10636]
[1740347520991,0.71945546,2812.2,2811.9,3.5563]
[1740347521358,0.71945546,2812.2,2811.9,3.66760818]
[1740347522896,0.71945546,2812.2,2811.9,0.11130818]
[1740347523262,0.71945546,2812.2,2811.8,4.10637]
[1740347526199,0.71945546,2812.2,2811.9,0.11130849]
[1740347527076,0.71945546,2812.2,2811.8,4.10637]
[1740347528414,0.71945546,2812.2,2811.9,3.55631]
[1740347530910,4.27539546,2812.2,2811.8,0.55]
[1740347531500,4.27539546,2812.2,2811.8,4.10643]
[1740347532908,4.27539546,2812.2,2811.9,0.11130798]
[1740347533441,0.71945546,2812.2,2812.1,4.91846]
[1740347533726,0.71945546,2812.2,2812.1,14.65190307]
[1740347533727,1e-05,2812.2,2812.1,14.65190307]
[1740347534526,1e-05,2812.2,2812.1,14.76321105]
[1740347534729,1e-05,2812.2,2812.1,15.54111159]
[1740347536494,4e-07,2812.6,2812.5,3.55555]
[1740347536724,4e-07,2812.6,2812.5,14.62209307]
[1740347537696,4e-07,2812.6,2812.5,14.73340105]
[1740347538013,4e-07,2812.6,2812.5,14.36952559]
[1740347541630,4e-07,2812.6,2812.5,15.71296866]
[1740347546386,4e-07,2812.6,2812.5,14.36952559]
[1740347558354,4e-07,2812.6,2812.5,13.58642559]
[1740347560668,4e-07,2812.6,2812.5,12.60685798]
[1740347562056,4e-07,2812.6,2812.5,0.11130798]
[1740347562267,0.7911004,2812.6,2812.5,0.11130798]
[1740347562473,0.7911004,2812.6,2812.5,0.66130798]
[1740347564712,4e-07,2812.6,2812.5,4.21685798]
[1740347574136,4e-07,2812.6,2812.5,5.29410478]
[1740347580485,4e-07,2812.6,2812.5,4.21685798]
[1740347581275,0.8306004,2812.6,2812.5,4.21685798]
[1740347581996,0.8306004,2812.6,2812.5,0.66130798]
[1740347583727,0.8306004,2812.6,2812.5,4.21685798]
[1740347585243,0.8306004,2812.6,2812.5,0.66130798]
[1740347597041,4.3860204,2812.6,2812.5,0.66130798]
[1740347599993,0.8306004,2812.6,2812.5,0.66130798]
[1740347606135,4.3860204,2812.6,2812.5,0.66130798]
[1740347606338,4.3860204,2812.6,2812.5,0.11130798]
[1740347606339,5.12872944,2812.6,2812.5,0.11130798]
[1740347608453,3.55631,2811.9,2811.6,0.66130798]
[1740347610347,3.55631,2811.9,2811.6,0.55]
[1740347611147,4.27761142,2811.9,2811.6,0.55]
[1740347611348,0.72130142,2811.9,2811.6,0.55]
[1740347611555,0.72130142,2811.9,2811.6,1.11518431]
[1740347614369,0.72130142,2811.9,2811.6,1.22649848]
[1740347615273,0.72130142,2811.9,2811.6,1.11518431]
[1740347615433,0.72130142,2811.9,2811.6,1.22649875]
[1740347617161,0.72130142,2811.9,2811.6,1.11518431]
[1740347618977,4.27764142,2811.9,2811.6,1.11518431]
[1740347619137,4.27764142,2811.9,2811.6,0.55]
[1740347619562,3.55644,2811.8,2811.6,0.55]
[1740347620457,4.27761142,2811.9,2811.6,0.55]
[1740347620891,4.27761142,2811.9,2811.5,0.55]
[1740347626800,3.55644,2811.8,2811.5,0.55]
[1740347627010,3.55682,2811.5,2811.4,0.11131444]
[1740347627180,3.55699,2811.4,2811.0,0.7519]
[1740347627781,3.55707,2811.3,2811.0,0.7519]
[1740347628106,3.55751,2811.0,2810.7,5.39]
[1740347628314,3.55745,2811.0,2810.7,5.39]
[1740347628601,3.55759,2810.9,2810.7,5.39]
[1740347629012,3.55759,2810.9,2810.6,0.7519]
[1740347629309,3.55794,2810.7,2810.2,5.39]
[1740347629611,3.55817,2810.5,2810.2,0.8001]
[1740347629909,3.55847,2810.2,2810.0,0.8001]
[1740347630109,3.55826,2810.4,2810.0,0.8001]
[1740347631665,3.55826,2810.4,2810.1,0.55]
[1740347631862,3.55809,2810.5,2810.1,0.55]
[1740347632067,0.70249935,2810.4,2810.1,0.55]
[1740347633507,3.55804,2810.6,2810.1,0.55]
[1740347633984,3.55804,2810.6,2810.1,4.10854]
[1740347634184,3.55804,2810.6,2810.2,3.55846]
[1740347635614,0.70708905,2810.5,2810.2,3.55846]
[1740347635774,0.70708905,2810.5,2810.1,0.55]
[1740347635975,0.70708905,2810.5,2810.1,4.10853]
[1740347638506,0.70708905,2810.5,2810.2,3.55844]
[1740347641539,0.70708905,2810.5,2810.3,3.5583]
[1740347641741,0.7585,2811.5,2810.6,4.10795]
[1740347641947,0.7585,2811.5,2811.1,3.55728]
[1740347642269,4.31536,2811.5,2811.1,3.55728]
[1740347642538,0.981636,2811.4,2811.1,3.55728]
[1740347642845,0.981636,2811.4,2811.1,3.55725]
[1740347643016,0.981636,2811.4,2811.2,3.55712]
[1740347643350,0.72590416,2811.3,2811.2,3.55712]
[1740347644765,0.72590416,2811.3,2811.1,3.55725]
[1740347644898,0.72590416,2811.3,2811.0,0.7769]
[1740347645094,0.72590416,2811.3,2811.0,4.33428]
[1740347646116,0.72590416,2811.3,2811.1,3.55731]
[1740347646768,0.72590416,2811.3,2811.0,0.7769]
[1740347647061,0.72590416,2811.3,2810.9,3.55745]
[1740347647236,0.72590416,2811.3,2810.9,7.11493]
[1740347647418,0.72590416,2811.3,2810.9,3.55745]
[1740347649858,0.72590416,2811.3,2811.0,3.55743]
[1740347654530,0.7585,2811.5,2811.0,0.790503]
[1740347654839,0.251,2811.9,2811.8,3.55644]
[1740347655571,0.251,2811.9,2811.6,0.55]
[1740347655772,0.95672222,2811.9,2811.6,4.10667]
[1740347664203,0.95672222,2811.9,2811.5,3.55681]
[1740347664355,0.95672222,2811.9,2811.3,3.55701]
[1740347664356,0.8267,2811.7,2811.3,3.55701]
[1740347664824,0.8267,2811.7,2811.4,0.55]
[1740347665088,0.8267,2811.7,2811.3,3.55701]
[1740347665296,4.38328,2811.7,2811.3,3.55701]
[1740347665994,0.8267,2811.7,2811.3,3.55699]
[1740347667487,4.38328,2811.7,2811.3,3.55699]
[1740347668374,0.8267,2811.7,2811.4,3.55694]
[1740347670265,1.51142222,2811.9,2811.2,0.55]
[1740347670599,1.51142222,2811.9,2811.1,1.3368]
[1740347670600,1.51142222,2811.9,2811.5,3.55674]
[1740347673101,1.51142222,2811.9,2811.6,3.55663]
[1740347673499,1.51142222,2811.9,2811.6,3.55669]
[1740347673857,1.51142222,2811.9,2811.7,3.55656]
[1740347674057,1.51142222,2811.9,2811.8,3.55644]
[1740347674298,1.51142222,2811.9,2811.7,3.55655]
[1740347675000,0.70572222,2811.9,2811.8,3.55644]
[1740347677091,0.70572222,2811.9,2811.7,3.55651]
[1740347679719,0.70572222,2811.9,2811.8,3.55644]
[1740347681025,6.0299,2812.1,2812.0,3.55618]
[1740347681323,5.25,2812.1,2812.0,3.55618]
[1740347681993,0.72171815,2812.2,2812.1,4.10606]
[1740347682214,4e-07,2812.6,2812.5,3.55555]
[1740347683685,0.72585079,2812.6,2812.5,3.55555]
[1740347695564,4e-07,2812.6,2812.5,4.10555]
[1740347701067,4e-07,2812.6,2812.5,4.90135]
[1740347702677,4e-07,2812.6,2812.5,5.747051]
[1740347702889,0.7909,2813.7,2813.1,3.55478]
[1740347703179,0.7909,2814.1,2813.8,4.10391]
[1740347703530,0.72072784,2813.9,2813.8,4.10391]
[1740347703732,0.005,2813.9,2813.8,4.10391]
[1740347703981,0.005,2813.9,2813.8,4.948733]
[1740347704141,0.005,2813.9,2813.8,3.55391]
[1740347704755,0.7959,2813.9,2813.7,3.55397]
[1740347705784,0.7959,2813.9,2813.5,7.10843]
[1740347705956,0.7959,2813.9,2813.5,7.10844]
[1740347706200,1.30358599,2813.9,2813.6,3.55416]
[1740347706497,0.7959,2813.9,2813.7,3.554]
[1740347707874,0.005,2813.9,2813.8,3.55391]
[1740347710509,0.005,2813.9,2813.8,4.10391]
[1740347714199,1e-05,2813.9,2813.8,13.31701]
[1740347715214,1e-05,2813.9,2813.8,13.41701]
[1740347715426,1e-05,2813.9,2813.8,26.97173899]
[1740347715606,0.1522604,2815.4,2815.3,3.55201]
[1740347715935,0.1522604,2815.4,2815.2,3.55213]
[1740347716138,0.1522604,2815.4,2814.8,3.83422]
[1740347716294,0.1522604,2815.4,2814.9,3.55252]
[1740347716637,0.1522604,2815.4,2815.3,3.55201]
[1740347716991,0.1522604,2815.4,2815.3,4.10201]
[1740347718300,0.1522604,2815.4,2815.3,0.55]
[1740347718494,0.1522604,2815.4,2815.3,4.10201]
[1740347718722,0.1522604,2815.4,2815.3,0.55]
[1740347718925,0.1522604,2815.4,2815.3,4.10201]
[1740347720997,0.1522604,2815.4,2815.3,4.68901352]
[1740347724252,0.1522604,2815.4,2815.3,0.55]
[1740347726051,0.9313604,2815.4,2814.9,3.55245]
[1740347726250,3.55203,2815.3,2814.9,3.55245]
[1740347726427,0.9313604,2815.4,2814.9,3.55245]
[1740347726765,4.4832704,2815.4,2814.9,3.55245]
[1740347728427,4.4832704,2815.4,2814.8,5.39]
[1740347728727,3.55204,2815.3,2814.9,0.55]
[1740347731783,3.55204,2815.3,2814.8,3.55]
[1740347732268,4.4832604,2815.4,2814.8,7.10255]
[1740347732473,3.55203,2815.3,2814.8,7.10255]
[1740347732672,3.5522,2815.2,2814.6,3.55284]
[1740347732969,3.55228,2815.1,2814.7,0.55]
[1740347734380,0.7514,2814.9,2814.3,8.94316]
[1740347734689,3.55276,2814.8,2814.2,3.55332]
[1740347734895,3.55272,2814.8,2814.2,0.894332]
[1740347735037,3.55295,2814.6,2814.0,9.74788]
[1740347735385,4.30442,2814.5,2814.0,3.55365]
[1740347735755,0.7514,2814.5,2813.8,6.33228809]
[1740347735964,3.55323,2814.4,2813.8,3.55383]
[1740347736277,0.7514,2814.5,2813.9,3.0]
[1740347736779,0.7514,2814.5,2813.6,4.35837]
[1740347736780,0.7514,2814.5,2814.0,0.55]
[1740347736940,3.55335,2814.3,2814.0,0.55]
[1740347737873,3.55335,2814.3,2813.9,0.55]
[1740347739686,0.70368748,2814.2,2813.9,4.10371]
[1740347739846,3.55323,2814.4,2813.9,4.10371]
[1740347740459,0.70945308,2814.3,2813.9,4.10371]
[1740347741697,4.26278308,2814.3,2813.9,0.55]
[1740347745295,0.70945308,2814.3,2813.9,4.10377]
[1740347745475,5.01395482,2814.5,2813.9,4.514077]
[1740347745680,1.46082482,2814.5,2813.9,4.514077]
[1740347745863,3.55329,2814.3,2813.9,0.55]
[1740347746069,3.55321,2814.4,2813.9,0.55]
[1740347747155,3.55321,2814.4,2813.9,4.10373]
[1740347747627,3.5533,2814.3,2813.9,0.55]
[1740347747820,3.55318,2814.4,2813.9,0.55]
[1740347748101,3.55318,2814.4,2813.9,3.55]
[1740347748286,3.55321,2814.4,2813.9,3.55376]
[1740347751077,7.10646,2814.4,2813.9,3.55376]
[1740347751521,3.55321,2814.4,2813.9,3.55376]
[1740347753233,3.55321,2814.4,2813.8,7.10383]
[1740347753438,7.10644,2814.4,2813.8,7.10383]
[1740347753731,3.55321,2814.4,2813.8,7.10383]
[1740347753914,3.55347,2814.2,2813.6,4.35838]
[1740347754121,0.52680348,2814.4,2813.8,4.10384]
[1740347754318,0.72578951,2814.2,2814.0,4.31426]
[1740347754495,0.7514,2814.5,2814.0,4.31435]
[1740347755012,0.72251506,2814.4,2814.0,4.31435]
[1740347757531,4.27568506,2814.4,2814.0,0.7607]
[1740347758010,3.5533,2814.3,2814.0,0.7607]
[1740347758418,3.62859541,2814.3,2813.6,3.0]
[1740347758626,3.55367,2814.0,2813.6,3.0]
[1740347759146,3.55367,2814.0,2813.7,0.55]
[1740347759613,3.55378,2813.9,2813.4,4.10439]
[1740347760129,3.62859541,2814.3,2813.3,0.7607]
[1740347760130,4.31197,2813.8,2813.3,0.7607]
[1740347760318,3.55431,2813.5,2813.0,7.10972]
[1740347760538,3.55417,2813.6,2813.1,3.55479]
[1740347760707,3.55403,2813.7,2813.2,4.10466]
[1740347760907,0.70670648,2813.6,2813.2,0.55]
[1740347761137,0.70670648,2813.6,2813.1,3.55]
[1740347761326,4.26087648,2813.6,2813.1,7.10478]
[1740347762023,4.26087648,2813.6,2813.2,0.11124791]
[1740347763539,4.26087648,2813.6,2813.2,3.66589791]
[1740347763839,0.70670648,2813.6,2813.2,3.66589791]
[1740347764420,4.26087648,2813.6,2813.2,3.66589791]
[1740347764621,4.26087648,2813.6,2813.3,0.11124791]
[1740347764929,4.26088648,2813.6,2813.3,0.11124791]
[1740347765729,7.81513648,2813.6,2813.3,0.11124791]
[1740347765900,4.26088648,2813.6,2813.3,0.11124791]
[1740347766098,0.70670648,2813.6,2813.3,0.11124791]
[1740347766338,3.5543,2813.5,2813.2,0.11124791]
[1740347766712,4.26087648,2813.6,2813.2,0.11124791]
[1740347767804,4.26087648,2813.6,2813.1,7.10473]
[1740347768902,4.26087648,2813.6,2813.1,7.10472]
[1740347769744,4.26087648,2813.6,2813.1,7.10471]
[1740347770040,4.26087648,2813.6,2813.2,0.11125049]
[1740347770604,0.70670648,2813.6,2813.2,0.11125049]
[1740347770806,3.55435,2813.5,2813.2,0.11125049]
[1740347771446,3.55435,2813.5,2813.1,4.10479]
[1740347772143,0.70670648,2813.6,2813.1,0.55]
[1740347772346,4.26092648,2813.6,2813.1,4.10478]
[1740347773243,0.70670648,2813.6,2813.2,3.55466]
[1740347774045,0.70670648,2813.6,2813.2,3.66591064]
[1740347775048,4.26086648,2813.6,2813.2,0.11125064]
[1740347776614,3.55429,2813.5,2813.2,0.11125064]
[1740347777751,0.70670648,2813.6,2813.2,0.11125064]
[1740347777924,4.26093648,2813.6,2813.2,0.11125064]
[1740347778354,4.26093648,2813.6,2813.1,4.10478]